bitfinex/quotes_SOLUSD_20241215
["timestamp","ask_amount","ask_price","bid_price","bid_amount"]
[1734248012124,20.0,216.68,216.63,1.1231]
[1734248012333,20.0,216.68,216.54,14.63593117]
[1734248012543,20.0,216.68,216.58,8.07883117]
[1734248012840,16.07123153,216.77,216.58,0.69246032]
[1734248012841,22.73464699,216.72,216.58,0.69246032]
[1734248013043,2.73464699,216.72,216.59,8.07883117]
[1734248013219,2.73464699,216.72,216.59,12.65771562]
[1734248013419,2.73464699,216.72,216.57,12.65771562]
[1734248013638,2.73464699,216.72,216.58,12.65771562]
[1734248013828,6.1069,216.79,216.62,12.78320562]
[1734248014030,4.63789181,216.8,216.63,19.21481562]
[1734248014242,11.72324347,216.81,216.64,12.65771562]
[1734248014422,11.72324347,216.81,216.64,12.78320562]
[1734248014621,11.72324347,216.81,216.65,12.65771562]
[1734248014822,2.82218229,216.78,216.66,1.6231]
[1734248015034,6.1069,216.84,216.67,0.12549]
[1734248015247,6.1069,216.84,216.67,12.78320562]
[1734248015746,6.1069,216.84,216.66,1.6231]
[1734248015747,2.71581624,216.79,216.66,14.28081562]
[1734248015929,2.71581624,216.79,216.67,0.12549]
[1734248016331,2.71581624,216.79,216.67,12.78320562]
[1734248017024,2.71581624,216.79,216.67,0.12549]
[1734248017660,2.71581624,216.79,216.67,12.78320562]
[1734248018663,20.0,216.81,216.68,12.65771562]
[1734248018968,2.69937719,216.84,216.73,6.5571]
[1734248019364,5.83348308,216.87,216.74,1.6231]
[1734248019847,6.1069,216.9,216.74,1.6231]
[1734248020782,20.0,216.87,216.74,1.6231]
[1734248021656,4.63789181,216.94,216.78,0.12549]
[1734248021870,6.1069,216.97,216.78,0.12549]
[1734248022388,10.83348308,216.96,216.74,1.6231]
[1734248022556,2.72062625,216.9,216.74,1.6231]
[1734248022869,1.5214,216.88,216.74,1.6231]
[1734248023055,7.6283,216.88,216.74,1.6231]
[1734248023459,20.0,216.85,216.74,1.6231]
[1734248023768,20.0,216.84,216.74,1.6231]
[1734248023953,20.0,216.85,216.74,1.6231]
[1734248025970,20.0,216.85,216.68,1.6231]
[1734248026754,20.0,216.85,216.68,14.28081562]
[1734248027172,20.0,216.85,216.68,1.6231]
[1734248027468,20.0,216.82,216.68,1.6231]
[1734248027669,23.776884,216.84,216.68,1.6231]
[1734248027670,20.0,216.81,216.68,1.6231]
[1734248028666,10.0,216.81,216.68,1.6231]
[1734248030858,2.83570752,216.79,216.68,1.6231]
[1734248031085,5.57710729,216.85,216.69,12.65771562]
[1734248031375,5.57710729,216.85,216.7,12.65771562]
[1734248031746,5.57710729,216.85,216.68,14.28081562]
[1734248032474,20.0,216.82,216.68,14.28081562]
[1734248032652,20.0,216.81,216.69,12.65771562]
[1734248034565,20.0,216.81,216.7,12.65771562]
[1734248034972,20.0,216.81,216.69,12.65771562]
[1734248035362,20.0,216.81,216.68,1.6231]
[1734248036351,20.0,216.8,216.68,1.6231]
[1734248036572,20.0,216.81,216.68,1.6231]
[1734248036969,20.0,216.81,216.69,12.65771562]
[1734248037281,20.0,216.81,216.68,1.6231]
[1734248037863,20.0,216.81,216.68,14.28081562]
[1734248038680,20.0,216.81,216.68,1.6231]
[1734248039599,20.0,216.81,216.68,14.28081562]
[1734248039768,20.0,216.81,216.68,1.6231]
[1734248040265,20.0,216.81,216.68,14.28081562]
[1734248041065,20.0,216.81,216.7,12.65771562]
[1734248041285,20.0,216.81,216.71,12.65771562]
[1734248041860,20.0,216.81,216.7,12.65771562]
[1734248042063,20.0,216.81,216.68,1.6231]
[1734248042790,20.0,216.81,216.68,14.28081562]
[1734248044287,20.0,216.81,216.68,1.6231]
[1734248045400,20.0,216.81,216.62,14.19171562]
[1734248045401,20.0,216.77,216.62,14.19171562]
[1734248045704,20.0,216.77,216.64,12.65771562]
[1734248046999,20.0,216.77,216.68,12.65771562]
[1734248047173,1.5939,216.79,216.68,12.65771562]
[1734248047602,1.5939,216.79,216.67,12.65771562]
[1734248047821,1.5939,216.79,216.66,12.65771562]
[1734248048170,1.5939,216.79,216.63,23.902374]
[1734248048171,1.5939,216.79,216.63,12.78320562]
[1734248048366,20.0,216.77,216.63,12.65771562]
[1734248049081,20.0,216.77,216.62,14.19171562]
[1734248049689,20.0,216.77,216.62,1.534]
[1734248049894,23.902374,216.76,216.59,12.65771562]
[1734248050070,20.0,216.69,216.58,12.65771562]
[1734248051019,20.0,216.69,216.62,12.65771562]
[1734248051235,6.2123,216.72,216.62,12.65771562]
[1734248051384,6.2123,216.72,216.61,12.65771562]
[1734248051587,6.2123,216.72,216.63,12.65771562]
[1734248051805,5.83348308,216.77,216.63,12.65771562]
[1734248052108,6.3797,216.78,216.65,12.65771562]
[1734248052283,6.3797,216.78,216.66,12.65771562]
[1734248052792,6.3797,216.78,216.63,12.65771562]
[1734248053106,20.0,216.75,216.64,12.65771562]
[1734248054515,20.0,216.75,216.63,12.65771562]
[1734248054712,20.0,216.75,216.62,12.65771562]
[1734248054905,20.0,216.75,216.61,12.65771562]
[1734248055287,20.0,216.71,216.59,12.65771562]
[1734248055612,6.3797,216.7,216.58,12.65771562]
[1734248055811,20.0,216.67,216.58,12.65771562]
[1734248056404,20.0,216.67,216.57,1.534]
[1734248056405,20.0,216.67,216.57,14.19171562]
[1734248056609,20.0,216.67,216.57,1.534]
[1734248057215,20.0,216.67,216.52,0.541143]
[1734248057216,20.0,216.63,216.52,0.541143]
[1734248057526,8.0434,216.62,216.52,0.541143]
[1734248058306,20.0,216.58,216.52,0.541143]
[1734248059044,20.0,216.59,216.52,0.541143]
[1734248061602,20.0,216.59,216.52,13.19885862]
[1734248061809,8.0434,216.62,216.52,13.19885862]
[1734248062119,8.0434,216.62,216.52,0.541143]
[1734248066117,2.79322738,216.66,216.52,2.081743]
[1734248066330,20.0,216.65,216.52,2.081743]
[1734248068028,2.79322738,216.66,216.54,12.65771562]
[1734248068224,2.79322738,216.66,216.53,12.65771562]
[1734248068626,2.79322738,216.66,216.52,2.081743]
[1734248068829,12.657715,216.65,216.52,2.081743]
[1734248069228,12.657715,216.65,216.52,14.73945862]
[1734248069430,20.0,216.62,216.52,2.081743]
[1734248072420,20.0,216.62,216.52,0.541143]
[1734248072421,20.0,216.53,216.52,0.541143]
[1734248073320,43.776884,216.53,216.52,0.541143]
[1734248073639,20.0,216.53,216.52,0.541143]
[1734248074013,43.776884,216.53,216.52,0.541143]
[1734248074209,20.0,216.53,216.52,0.541143]
[1734248080331,20.0,216.58,216.52,0.541143]
[1734248080540,7.6307,216.61,216.52,0.541143]
[1734248080742,2.77522233,216.58,216.52,0.541143]
[1734248082224,22.77522233,216.58,216.52,0.541143]
[1734248083420,2.77522233,216.58,216.52,0.541143]
[1734248083832,22.77522233,216.58,216.52,0.541143]
[1734248084223,2.77522233,216.58,216.52,0.541143]
[1734248092629,22.77522233,216.58,216.52,0.541143]
[1734248093048,43.776884,216.57,216.52,0.541143]
[1734248093247,20.0,216.54,216.52,0.541143]
[1734248093838,20.0,216.53,216.52,0.541143]
[1734248094145,2.77522233,216.58,216.52,0.541143]
[1734248099043,20.0,216.54,216.52,0.541143]
[1734248100039,20.0,216.57,216.52,0.541143]
[1734248100453,19.5,216.57,216.52,0.541143]
[1734248100766,2.77522233,216.58,216.52,0.541143]
[1734248100936,2.27522233,216.58,216.52,0.541143]
[1734248101554,1.77522233,216.58,216.52,0.541143]
[1734248106478,20.0,216.54,216.52,0.541143]
[1734248107956,20.0,216.54,216.47,3.75860706]
[1734248107957,20.0,216.5,216.47,3.75860706]
[1734248109247,20.0,216.5,216.38,1.6428]
[1734248109248,20.0,216.46,216.38,1.6428]
[1734248109884,20.0,216.51,216.38,1.6428]
[1734248110086,23.776884,216.5,216.38,1.6428]
[1734248110270,20.0,216.47,216.38,1.6428]
[1734248111190,2.19631644,216.54,216.38,1.6428]
[1734248111191,20.0,216.53,216.38,1.6428]
[1734248111380,20.0,216.53,216.38,14.32666947]
[1734248111901,20.0,216.53,216.39,12.68386947]
[1734248112055,6.17575796,216.57,216.38,1.6428]
[1734248112056,4.53195796,216.57,216.41,18.88246947]
[1734248112678,4.53195796,216.57,216.42,1.5743]
[1734248112887,9.92531617,216.58,216.42,14.25816947]
[1734248113366,7.69130556,216.58,216.43,12.80935947]
[1734248113577,7.69130556,216.58,216.44,12.68386947]
[1734248113763,7.69130556,216.58,216.43,0.12549]
[1734248114132,7.69130556,216.58,216.43,12.80935947]
[1734248115171,20.0,216.55,216.43,12.80935947]
[1734248115561,20.0,216.55,216.44,6.1986]
[1734248115768,20.0,216.55,216.45,1.5743]
[1734248121575,23.776884,216.54,216.45,1.5743]
[1734248121892,20.0,216.51,216.45,1.5743]
[1734248123298,20.0,216.47,216.4,1.5743]
[1734248124314,20.0,216.48,216.4,1.5743]
[1734248124812,20.0,216.51,216.4,1.5743]
[1734248125009,20.0,216.5,216.4,1.5743]
[1734248127418,5.91608323,216.53,216.42,12.68386947]
[1734248127603,1.77522233,216.58,216.42,12.68386947]
[1734248128402,1.77522233,216.58,216.4,1.5743]
[1734248128403,7.53838233,216.58,216.4,1.5743]
[1734248128596,23.776884,216.56,216.4,14.25816947]
[1734248128924,20.0,216.53,216.4,14.25816947]
[1734248129152,20.0,216.52,216.4,14.25816947]
[1734248130112,20.0,216.52,216.41,12.80935947]
[1734248130299,20.0,216.52,216.44,0.12549]
[1734248130500,21.77522233,216.58,216.44,0.12549]
[1734248131205,21.77522233,216.58,216.45,1.5247]
[1734248132309,20.0,216.54,216.45,1.5247]
[1734248133614,1.77522233,216.58,216.45,1.5247]
[1734248133615,21.77522233,216.58,216.45,1.5247]
[1734248133999,1.77522233,216.58,216.45,1.5247]
[1734248134203,1.77522233,216.58,216.46,19.15006947]
[1734248134431,4.53195796,216.62,216.47,12.80935947]
[1734248134651,4.53195796,216.62,216.48,1.5247]
[1734248134805,4.53195796,216.62,216.49,0.12549]
[1734248136015,22.7384251,216.63,216.49,12.93484947]
[1734248136217,22.7384251,216.63,216.5,12.68386947]
[1734248136218,2.7384251,216.63,216.5,12.68386947]
[1734248136537,2.7384251,216.63,216.51,0.12549]
[1734248138242,22.7384251,216.63,216.51,0.12549]
[1734248138551,22.7384251,216.63,216.49,12.68386947]
[1734248138839,20.0,216.62,216.49,12.68386947]
[1734248139023,22.7384251,216.63,216.48,14.20856947]
[1734248139504,22.7384251,216.63,216.49,12.68386947]
[1734248140453,22.7384251,216.63,216.48,1.5247]
[1734248141033,22.7384251,216.63,216.48,14.20856947]
[1734248142223,22.7384251,216.63,216.49,12.68386947]
[1734248143852,22.7384251,216.63,216.48,14.20856947]
[1734248144024,22.7384251,216.63,216.42,5.0]
[1734248144025,22.7384251,216.63,216.51,19.15006947]
[1734248144226,2.7384251,216.63,216.51,19.15006947]
[1734248144445,2.7384251,216.63,216.52,1.5247]
[1734248144837,5.91608323,216.66,216.55,12.68386947]
[1734248145049,10.29511796,216.67,216.56,12.68386947]
[1734248145050,4.53195796,216.67,216.56,12.68386947]
[1734248145259,6.68816156,216.72,216.57,14.20856947]
[1734248145560,6.68816156,216.72,216.59,6.4662]
[1734248145761,4.53195796,216.72,216.59,6.4662]
[1734248145937,4.53195796,216.72,216.59,19.15006947]
[1734248146122,11.54548072,216.78,216.61,12.68386947]
[1734248146327,21.9868532,216.78,216.61,12.68386947]
[1734248146751,24.14327016,216.78,216.63,12.68386947]
[1734248146928,15.8844532,216.78,216.63,12.68386947]
[1734248147130,10.44137248,216.78,216.65,12.68386947]
[1734248147447,10.44137248,216.78,216.62,1.5247]
[1734248147448,10.44137248,216.78,216.67,19.15006947]
[1734248147642,5.90941452,216.78,216.67,19.15006947]
[1734248148033,31.12473149,216.82,216.67,19.15006947]
[1734248149243,0.12549,216.8,216.67,6.4662]
[1734248149446,20.0,216.78,216.67,6.4662]
[1734248149733,4.65744796,216.8,216.62,1.5247]
[1734248149734,20.0,216.74,216.62,1.5247]
[1734248150751,23.776884,216.77,216.62,1.5247]
[1734248150752,20.0,216.7,216.62,1.5247]
[1734248154185,20.0,216.66,216.57,1.5878]
[1734248155161,20.0,216.66,216.5,6.1099]
[1734248155162,20.0,216.62,216.52,1.5878]
[1734248156868,20.0,216.61,216.52,1.5878]
[1734248157448,20.0,216.57,216.46,14.21916947]
[1734248157651,20.0,216.57,216.46,1.5353]
[1734248158169,20.0,216.57,216.46,14.21916947]
[1734248160572,20.0,216.57,216.46,1.5353]
[1734248161156,20.0,216.53,216.45,10.0]
[1734248161667,20.0,216.51,216.45,10.0]
[1734248164572,20.0,216.53,216.45,10.0]
[1734248165063,20.0,216.49,216.45,10.0]
[1734248165261,23.902374,216.48,216.45,10.0]
[1734248165475,20.0,216.49,216.45,10.0]
[1734248165682,20.0,216.5,216.45,10.0]
[1734248166709,20.0,216.52,216.45,10.0]
[1734248168978,20.0,216.48,216.45,10.0]
[1734248171974,20.0,216.47,216.45,9.9267]
[1734248173885,20.0,216.46,216.45,9.9267]
[1734248177097,33.829074,216.51,216.45,9.9267]
[1734248177479,23.902374,216.53,216.45,9.9267]
[1734248177675,12.68387,216.53,216.45,9.9267]
[1734248177890,31.31367919,216.57,216.46,14.30626947]
[1734248178296,7.8832,216.63,216.46,14.30626947]
[1734248178779,0.12549,216.62,216.46,14.30626947]
[1734248179107,2.8276991,216.55,216.46,1.6224]
[1734248179485,0.12549,216.54,216.46,1.6224]
[1734248179684,0.12549,216.54,216.45,9.9267]
[1734248180612,20.0,216.51,216.45,9.9267]
[1734248185000,2.8276991,216.55,216.45,9.9267]
[1734248186295,7.8832,216.63,216.45,9.9267]
[1734248186602,10.01790425,216.63,216.45,9.9267]
[1734248186807,6.03490452,216.62,216.45,9.9267]
[1734248187004,2.81641463,216.56,216.45,9.9267]
[1734248187521,0.12549,216.58,216.45,9.9267]
[1734248187680,20.0,216.55,216.45,9.9267]
[1734248188494,20.0,216.59,216.45,9.9267]
[1734248188710,20.0,216.59,216.46,1.5912]
[1734248189487,0.12549,216.58,216.46,1.5912]
[1734248189793,2.80379074,216.56,216.46,1.5912]
[1734248190998,20.0,216.52,216.46,1.5912]
[1734248193998,23.902374,216.51,216.46,1.5912]
[1734248194206,20.0,216.48,216.46,1.5912]
[1734248194502,24.97429561,216.56,216.46,1.5912]
[1734248194707,20.0,216.52,216.46,1.5912]
[1734248197505,2.80379074,216.56,216.45,9.9267]
[1734248197506,20.0,216.48,216.45,9.9267]
[1734248198842,23.902374,216.47,216.45,9.9267]
[1734248199308,23.776884,216.47,216.45,9.9267]
[1734248199506,2.03887329,216.5,216.45,9.9267]
[1734248199730,23.902374,216.5,216.45,9.9267]
[1734248199935,20.0,216.47,216.45,9.9267]
[1734248201721,8.68293437,216.54,216.45,9.9267]
[1734248201925,2.04193437,216.54,216.45,9.9267]
[1734248202128,31.3187104,216.55,216.45,9.9267]
[1734248202728,0.12549,216.54,216.45,9.9267]
[1734248203423,23.902374,216.54,216.45,9.9267]
[1734248204925,0.12549,216.53,216.45,9.9267]
[1734248205418,24.027864,216.5,216.45,9.9267]
[1734248205626,20.0,216.47,216.45,9.9267]
[1734248206647,20.0,216.43,216.36,6.4439]
[1734248208951,23.902374,216.42,216.35,1.5487]
[1734248209120,20.0,216.43,216.35,1.5487]
[1734248211449,23.776884,216.42,216.35,1.5487]
[1734248211768,20.0,216.39,216.35,1.5487]
[1734248212240,23.902374,216.45,216.35,1.5487]
[1734248212449,2.84013342,216.4,216.35,1.5487]
[1734248216574,20.0,216.36,216.31,8.0977]
[1734248217231,2.84013342,216.4,216.31,8.0977]
[1734248219156,2.0934841,216.44,216.32,12.68386947]
[1734248219328,13.225013,216.47,216.33,12.68386947]
[1734248220031,0.12549,216.48,216.33,12.68386947]
[1734248220260,0.12549,216.48,216.31,8.79103182]
[1734248220261,2.84193695,216.43,216.32,12.68386947]
[1734248220439,2.84193695,216.43,216.31,8.0977]
[1734248220638,2.84193695,216.43,216.32,12.68386947]
[1734248221872,2.84193695,216.43,216.31,8.0977]
[1734248222938,2.84193695,216.43,216.31,20.78156947]
[1734248223145,2.84193695,216.43,216.37,14.33766947]
[1734248223344,5.68624785,216.52,216.4,12.68386947]
[1734248223664,2.77814841,216.48,216.4,19.01316947]
[1734248224761,2.77814841,216.48,216.4,6.3293]
[1734248226371,2.77814841,216.48,216.37,1.6538]
[1734248227559,23.902374,216.47,216.37,1.6538]
[1734248227754,20.0,216.44,216.37,1.6538]
[1734248230662,20.0,216.4,216.32,1.6311]
[1734248230967,10.85634841,216.48,216.32,1.6311]
[1734248230968,20.0,216.45,216.32,14.31496947]
[1734248231152,20.0,216.45,216.33,12.68386947]
[1734248231668,22.77814841,216.48,216.35,12.68386947]
[1734248231978,2.94546096,216.52,216.4,1.6311]
[1734248232282,0.12549,216.54,216.4,14.31496947]
[1734248232567,0.12549,216.54,216.4,1.6311]
[1734248232769,49.8026734,216.55,216.43,12.68386947]
[1734248232770,31.3187104,216.55,216.43,12.68386947]
[1734248232935,31.3187104,216.55,216.45,12.68386947]
[1734248233141,18.480094,216.59,216.46,12.68386947]
[1734248233339,6.458,216.62,216.47,12.68386947]
[1734248233573,12.683869,216.61,216.47,12.68386947]
[1734248233943,2.83864524,216.58,216.48,12.68386947]
[1734248234302,2.83864524,216.58,216.5,1.6311]
[1734248234855,2.83864524,216.58,216.45,1.6311]
[1734248235245,2.83864524,216.58,216.45,14.31496947]
[1734248235461,2.83864524,216.58,216.46,12.68386947]
[1734248236371,23.902374,216.57,216.45,1.6311]
[1734248236551,20.0,216.54,216.45,1.6311]
[1734248238938,20.0,216.5,216.39,1.6311]
[1734248239140,20.0,216.46,216.39,1.6311]
[1734248239743,6.458,216.51,216.39,14.31496947]
[1734248239958,20.0,216.48,216.39,14.31496947]
[1734248240162,20.0,216.51,216.42,12.68386947]
[1734248240366,20.0,216.53,216.42,12.68386947]
[1734248240574,20.0,216.53,216.4,12.68386947]
[1734248243143,20.0,216.53,216.39,14.31496947]
[1734248243843,23.902374,216.51,216.39,1.6311]
[1734248244052,20.0,216.49,216.39,1.6311]
[1734248244451,20.0,216.49,216.39,14.31496947]
[1734248244773,20.12549,216.53,216.39,14.31496947]
[1734248245989,20.0,216.53,216.43,12.68386947]
[1734248247867,20.0,216.53,216.44,12.68386947]
[1734248248164,20.0,216.53,216.43,12.68386947]
[1734248248371,20.0,216.53,216.41,12.68386947]
[1734248248568,20.0,216.53,216.4,12.68386947]
[1734248249069,20.0,216.53,216.34,1.6311]
[1734248249070,23.776884,216.48,216.34,1.6311]
[1734248249310,20.0,216.45,216.35,12.68386947]
[1734248249945,20.0,216.49,216.34,14.31496947]
[1734248250141,20.0,216.49,216.34,1.6311]
[1734248250545,23.902374,216.48,216.34,1.6311]
[1734248250741,20.0,216.45,216.34,1.6311]
[1734248250969,20.0,216.43,216.34,1.6311]
[1734248251165,20.0,216.43,216.3,0.541143]
[1734248251368,20.0,216.39,216.3,0.541143]
[1734248252878,23.902374,216.38,216.3,0.541143]
[1734248253106,20.0,216.35,216.3,0.541143]
[1734248253477,20.0,216.43,216.3,0.541143]
[1734248253679,20.0,216.39,216.3,0.541143]
[1734248254773,21.51,216.39,216.3,0.541143]
[1734248257128,20.0,216.35,216.3,0.541143]
[1734248259017,20.0,216.33,216.3,0.541143]
[1734248261032,1.51,216.39,216.3,0.541143]
[1734248261792,0.12549,216.38,216.3,0.541143]
[1734248262213,4.26679328,216.38,216.3,0.541143]
[1734248262383,0.12549,216.35,216.3,0.541143]
[1734248263201,20.0,216.32,216.3,0.541143]
[1734248270937,20.0,216.36,216.3,0.541143]
[1734248272410,22.71250242,216.35,216.3,0.541143]
[1734248273623,20.0,216.31,216.3,0.541143]
[1734248276909,43.902374,216.31,216.3,0.541143]
[1734248277652,43.902374,216.31,216.2,16.6582]
[1734248277653,23.902374,216.28,216.2,10.0]
[1734248277950,20.0,216.25,216.2,10.0]
[1734248278842,20.0,216.29,216.2,10.0]
[1734248280463,5.81592072,216.32,216.2,18.13353165]
[1734248280618,2.71250242,216.35,216.22,8.13353165]
[1734248280946,2.71250242,216.35,216.23,9.78833165]
[1734248281113,2.71250242,216.35,216.23,1.6548]
[1734248281319,2.71250242,216.35,216.23,14.35602866]
[1734248281732,22.71250242,216.35,216.23,1.6548]
[1734248282457,22.71250242,216.35,216.23,14.35602866]
[1734248282616,2.71250242,216.35,216.24,6.6582]
[1734248283936,22.71250242,216.35,216.24,6.6582]
[1734248287548,23.902374,216.34,216.24,6.6582]
[1734248287756,20.0,216.31,216.24,6.6582]
[1734248288852,20.0,216.31,216.23,1.6548]
[1734248289925,23.902374,216.3,216.23,1.6548]
[1734248290240,20.0,216.27,216.2,10.0]
[1734248290622,20.0,216.31,216.2,10.0]
[1734248290823,20.0,216.31,216.2,22.70122866]
[1734248291362,22.71250242,216.35,216.2,22.70122866]
[1734248291923,22.71250242,216.35,216.2,10.0]
[1734248292123,20.0,216.31,216.2,10.0]
[1734248293031,20.0,216.27,216.2,10.0]
[1734248297726,20.0,216.29,216.2,10.0]
[1734248298844,0.12549,216.28,216.2,10.0]
[1734248299421,20.0,216.25,216.2,10.0]
[1734248301350,20.0,216.29,216.2,10.0]
[1734248302332,20.0,216.3,216.2,9.5]
[1734248302535,20.0,216.3,216.2,17.63305569]
[1734248303555,20.0,216.3,216.2,9.5]
[1734248305161,20.0,216.3,216.2,18.32667123]
[1734248305332,20.0,216.34,216.22,8.13305569]
[1734248305656,20.0,216.34,216.21,6.0406]
[1734248306057,23.902374,216.33,216.21,6.0406]
[1734248306232,20.0,216.3,216.21,6.0406]
[1734248307359,20.0,216.26,216.21,6.0406]
[1734248308159,20.0,216.26,216.2,9.5]
[1734248308660,2.7415458,216.32,216.2,9.5]
[1734248308859,20.0,216.28,216.2,9.5]
[1734248309062,20.0,216.21,216.2,9.5]
[1734248312154,23.902374,216.26,216.2,9.5]
[1734248312463,20.0,216.23,216.2,9.5]
[1734248317071,20.0,216.24,216.2,9.5]
[1734248321485,5.81592072,216.29,216.2,9.5]
[1734248321486,20.0,216.26,216.2,9.5]
[1734248321962,20.0,216.29,216.2,9.5]
[1734248324277,20.0,216.25,216.2,9.5]
[1734248327283,20.0,216.21,216.2,9.5]
[1734248327491,43.902374,216.21,216.2,4.9405387]
[1734248328695,45.89342109,216.21,216.2,4.9405387]
[1734248328904,23.902374,216.2,216.16,10.0]
[1734248329060,20.0,216.17,216.16,10.0]
[1734248336465,23.902374,216.16,216.08,0.541143]
[1734248336805,20.0,216.13,216.08,0.541143]
[1734248337201,0.99950706,216.16,216.08,0.541143]
[1734248337202,20.0,216.14,216.08,0.541143]
[1734248340692,20.0,216.16,216.09,1.656]
[1734248340886,20.0,216.15,216.09,1.656]
[1734248341091,19.5,216.15,216.09,1.656]
[1734248341591,7.633056,216.18,216.09,8.2399]
[1734248342300,2.81580924,216.21,216.09,8.2399]
[1734248342487,10.99000824,216.21,216.09,8.2399]
[1734248343205,20.0,216.18,216.09,8.2399]
[1734248345394,20.0,216.14,216.09,1.656]
[1734248346183,43.776884,216.13,216.08,0.541143]
[1734248346407,20.0,216.13,216.08,0.541143]
[1734248346784,20.0,216.14,216.08,0.541143]
[1734248346986,23.776884,216.13,216.08,0.541143]
[1734248347194,20.0,216.1,216.08,0.541143]
[1734248348892,20.0,216.14,216.08,0.541143]
[1734248354303,23.902374,216.13,216.08,0.541143]
[1734248354617,20.0,216.1,216.08,0.541143]
[1734248355204,4.51282211,216.14,216.08,0.541143]
[1734248355406,4.6107768,216.21,216.09,1.5004]
[1734248355614,2.31580924,216.21,216.09,1.5004]
[1734248355794,6.82863124,216.21,216.09,1.5004]
[1734248356115,0.12549,216.2,216.09,1.5004]
[1734248356312,6.82863124,216.21,216.09,1.5004]
[1734248356710,20.0,216.18,216.09,1.5004]
[1734248357415,0.12549,216.17,216.08,0.541143]
[1734248357619,4.95125463,216.17,216.08,0.541143]
[1734248357916,20.0,216.13,216.08,0.541143]
[1734248358811,20.0,216.15,216.08,0.541143]
[1734248359116,20.0,216.11,216.08,0.541143]
[1734248365340,24.027864,216.1,216.08,0.541143]
[1734248368570,2.82072364,216.09,216.08,0.541143]
[1734248368721,20.0,216.05,216.0,110.0]
[1734248369047,20.0,216.01,216.0,110.0]
[1734248373128,20.0,216.01,216.0,22.21944445]
[1734248375331,23.776884,216.06,216.0,22.21944445]
[1734248375534,15.21689332,216.09,216.0,22.21944445]
[1734248376141,7.41549332,216.09,216.0,22.21944445]
[1734248376349,0.12549,216.08,216.0,22.21944445]
[1734248376733,0.12549,216.05,216.0,22.21944445]
[1734248377037,20.0,216.02,216.0,22.21944445]
[1734248378136,4.10541978,216.08,216.0,22.21944445]
[1734248378137,20.0,216.06,216.0,22.21944445]
[1734248380646,23.776884,216.05,216.0,22.21944445]
[1734248380851,20.0,216.02,216.0,22.21944445]
[1734248381554,23.776884,216.01,216.0,1e-08]
[1734248382435,23.776884,216.01,215.95,1.5493]
[1734248382436,20.0,215.98,215.95,1.5493]
[1734248382647,20.0,215.98,215.92,6.4614]
[1734248383150,20.0,215.98,215.9,1.5052]
[1734248384934,23.776884,215.97,215.88,50.0]
[1734248385168,20.0,215.98,215.88,50.0]
[1734248385452,20.0,215.98,215.88,58.13305569]
[1734248385659,20.0,215.98,215.88,50.0]
[1734248386449,3.48596447,216.02,215.9,1.5052]
[1734248386762,18.525261,216.05,215.9,9.63825569]
[1734248386963,18.525261,216.05,215.92,8.13305569]
[1734248387148,34.01238482,216.07,215.93,0.69450459]
[1734248387342,29.41761514,216.07,215.94,9.63825569]
[1734248387549,2.00790033,216.07,215.94,9.63825569]
[1734248387847,2.82072364,216.09,215.94,9.63825569]
[1734248388253,0.12549,216.08,215.94,9.63825569]
[1734248388646,20.0,216.05,215.94,9.63825569]
[1734248388974,2.82072364,216.09,215.97,8.13305569]
[1734248389145,2.82072364,216.09,215.97,12.73096622]
[1734248389486,2.82072364,216.09,215.99,6.0991]
[1734248390150,20.0,216.06,215.99,6.0991]
[1734248391576,20.0,216.06,215.98,1.5052]
[1734248393485,21.94125205,216.06,215.98,1.5052]